[Event "*** Titled Tuesday Blitz"]
[Site "Chess.com"]
[Date "2018.01.02"]
[Round "3"]
[White "SergeiAza"]
[Black "ZapataCharlesS"]
[Result "0-1"]
[WhiteElo "2671"]
[BlackElo "2634"]
[TimeControl "180+2"]
[EndTime "13:37:16 PST"]
[Termination "ZapataCharlesS won by resignation"]

1. e4 {[%clk 0:03:01.9]} 1... c5 {[%clk 0:02:58.5]} 2. Nf3 {[%clk 0:03:02.7]}
2... e6 {[%clk 0:02:59.2]} 3. d4 {[%clk 0:03:04.1]} 3... cxd4 {[%clk 0:03:01.1]}
4. Nxd4 {[%clk 0:03:05.5]} 4... Nf6 {[%clk 0:03:01.6]} 5. Nc3 {[%clk 0:03:06.5]}
5... Nc6 {[%clk 0:03:01]} 6. Ndb5 {[%clk 0:03:06.2]} 6... Bc5 {[%clk 0:03:00.7]}
7. Nd6+ {[%clk 0:03:04.3]} 7... Ke7 {[%clk 0:03:01.6]} 8. Nxc8+ {[%clk
0:03:05.1]} 8... Rxc8 {[%clk 0:02:56.3]} 9. Bd3 {[%clk 0:03:05.9]} 9... Rg8
{[%clk 0:02:49.8]} 10. O-O {[%clk 0:03:00.4]} 10... g5 {[%clk 0:02:49.1]} 11. a3
{[%clk 0:02:58.2]} 11... a6 {[%clk 0:02:46.6]} 12. b4 {[%clk 0:02:58.8]} 12...
Bd4 {[%clk 0:02:42.3]} 13. Bb2 {[%clk 0:02:57.7]} 13... Kf8 {[%clk 0:02:37.4]}
14. Na4 {[%clk 0:02:47.9]} 14... Bxb2 {[%clk 0:02:29.9]} 15. Nxb2 {[%clk
0:02:48.6]} 15... Ne5 {[%clk 0:02:17.2]} 16. Qe2 {[%clk 0:02:45.6]} 16... Qc7
{[%clk 0:02:14]} 17. Nd1 {[%clk 0:02:31.8]} 17... g4 {[%clk 0:02:14.7]} 18. Kh1
{[%clk 0:02:25.9]} 18... h5 {[%clk 0:02:10.3]} 19. Ne3 {[%clk 0:02:21.3]} 19...
h4 {[%clk 0:02:10.5]} 20. f4 {[%clk 0:02:20.2]} 20... gxf3 {[%clk 0:02:11.3]}
21. gxf3 {[%clk 0:02:21.2]} 21... Ng6 {[%clk 0:02:08]} 22. Rg1 {[%clk 0:02:03]}
22... Qe5 {[%clk 0:02:00.7]} 23. Qf2 {[%clk 0:01:56.5]} 23... Ke7 {[%clk
0:01:44.4]} 24. Nc4 {[%clk 0:01:48.9]} 24... Qf4 {[%clk 0:01:42.8]} 25. Raf1
{[%clk 0:01:35.1]} 25... b5 {[%clk 0:01:42.2]} 26. Na5 {[%clk 0:01:29.7]} 26...
Ne5 {[%clk 0:01:39.2]} 27. Rxg8 {[%clk 0:01:19.5]} 27... Rxg8 {[%clk 0:01:39.3]}
28. Nb7 {[%clk 0:01:13.9]} 28... d6 {[%clk 0:01:30.9]} 29. Qa7 {[%clk
0:00:45.5]} 29... Nfd7 {[%clk 0:01:13.1]} 30. Qxa6 {[%clk 0:00:40.5]} 30... Nxd3
{[%clk 0:01:02]} 31. cxd3 {[%clk 0:00:37.4]} 31... h3 {[%clk 0:01:02.8]} 32. Qa7
{[%clk 0:00:13.2]} 32... Rg2 {[%clk 0:00:50.6]} 0-1

[Event "*** Titled Tuesday Blitz"]
[Site "Chess.com"]
[Date "2018.01.02"]
[Round "3"]
[White "jcibarra"]
[Black "ChessQueen"]
[Result "0-1"]
[WhiteElo "2717"]
[BlackElo "2624"]
[TimeControl "180+2"]
[EndTime "13:37:19 PST"]
[Termination "ChessQueen won by resignation"]

1. e4 {[%clk 0:03:01.9]} 1... e5 {[%clk 0:03:01]} 2. Nf3 {[%clk 0:03:02.3]} 2...
Nf6 {[%clk 0:03:02.2]} 3. Nxe5 {[%clk 0:03:00.2]} 3... d6 {[%clk 0:03:03.5]} 4.
Nf3 {[%clk 0:03:01.8]} 4... Nxe4 {[%clk 0:03:05]} 5. Nc3 {[%clk 0:03:03.3]} 5...
Nxc3 {[%clk 0:03:05.6]} 6. dxc3 {[%clk 0:03:05.2]} 6... Be7 {[%clk 0:03:06.9]}
7. Be3 {[%clk 0:03:06.4]} 7... Nd7 {[%clk 0:03:06.8]} 8. Qd2 {[%clk 0:03:07.6]}
8... Nf6 {[%clk 0:03:08]} 9. O-O-O {[%clk 0:03:08.1]} 9... O-O {[%clk
0:03:05.5]} 10. c4 {[%clk 0:03:06.1]} 10... b5 {[%clk 0:03:01.7]} 11. cxb5
{[%clk 0:03:04.9]} 11... a6 {[%clk 0:03:02.8]} 12. b6 {[%clk 0:03:05.7]} 12...
cxb6 {[%clk 0:03:00.4]} 13. Nd4 {[%clk 0:02:57.6]} 13... Ne4 {[%clk 0:02:29.5]}
14. Qd3 {[%clk 0:02:51.7]} 14... Nc5 {[%clk 0:02:28.1]} 15. Qa3 {[%clk
0:02:37.3]} 15... Bd7 {[%clk 0:02:23.1]} 16. Bc4 {[%clk 0:02:35]} 16... Qc7
{[%clk 0:02:18.2]} 17. Bd5 {[%clk 0:02:34.7]} 17... Rac8 {[%clk 0:02:17.8]} 18.
Kb1 {[%clk 0:02:33.5]} 18... b5 {[%clk 0:02:15.1]} 19. Bd2 {[%clk 0:02:03.1]}
19... Bf6 {[%clk 0:02:11.5]} 20. Ba5 {[%clk 0:02:02.9]} 20... Qb8 {[%clk
0:02:11.4]} 21. Qb4 {[%clk 0:01:47.3]} 21... Na4 {[%clk 0:02:02]} 22. Rhe1
{[%clk 0:01:38.7]} 22... Rc5 {[%clk 0:01:58.8]} 23. Nb3 {[%clk 0:01:32.4]} 23...
Nxb2 {[%clk 0:01:52.3]} 24. Nxc5 {[%clk 0:01:24.4]} 24... dxc5 {[%clk 0:01:53]}
25. Qxc5 {[%clk 0:01:26.3]} 25... Nxd1 {[%clk 0:01:53.8]} 26. Rxd1 {[%clk
0:01:28.1]} 26... Qe5 {[%clk 0:01:51.6]} 27. c3 {[%clk 0:01:07.9]} 27... Bf5+
{[%clk 0:01:52.4]} 28. Ka1 {[%clk 0:00:53.5]} 28... Bc2 {[%clk 0:01:51.4]} 29.
Rc1 {[%clk 0:00:35.2]} 29... Be4 {[%clk 0:01:40]} 30. Bb4 {[%clk 0:00:25.8]}
30... Rd8 {[%clk 0:01:40.8]} 31. Bxe4 {[%clk 0:00:26]} 31... Qxe4 {[%clk
0:01:42.2]} 32. f3 {[%clk 0:00:16.2]} 32... Qe2 {[%clk 0:01:43.1]} 33. Qb6
{[%clk 0:00:10.4]} 33... Qxg2 {[%clk 0:01:25.7]} 34. Qxa6 {[%clk 0:00:09.7]}
34... Qxf3 {[%clk 0:01:22.5]} 35. Qxb5 {[%clk 0:00:10.4]} 35... h5 {[%clk
0:01:22.9]} 36. a4 {[%clk 0:00:10.8]} 36... Rd2 {[%clk 0:01:21.7]} 37. Qc4
{[%clk 0:00:08]} 37... Rxh2 {[%clk 0:01:20.4]} 38. a5 {[%clk 0:00:09.4]} 38...
Qf2 {[%clk 0:01:18]} 39. Rb1 {[%clk 0:00:07.4]} 39... Qc2 {[%clk 0:01:14.4]} 40.
a6 {[%clk 0:00:07.8]} 40... Qa4+ {[%clk 0:01:14.8]} 0-1

[Event "*** Titled Tuesday Blitz"]
[Site "Chess.com"]
[Date "2018.01.02"]
[Round "3"]
[White "AkshatChandra"]
[Black "Incognito_Knight"]
[Result "1/2-1/2"]
[WhiteElo "2673"]
[BlackElo "2537"]
[TimeControl "180+2"]
[EndTime "13:37:32 PST"]
[Termination "Game drawn by agreement"]

1. e4 {[%clk 0:03:01.9]} 1... e5 {[%clk 0:02:59.9]} 2. Nf3 {[%clk 0:03:02.5]}
2... Nc6 {[%clk 0:03:01.5]} 3. Bb5 {[%clk 0:03:03.8]} 3... Nf6 {[%clk
0:03:02.1]} 4. d3 {[%clk 0:03:04.4]} 4... Bc5 {[%clk 0:03:02.8]} 5. Bxc6 {[%clk
0:03:03.9]} 5... dxc6 {[%clk 0:03:03.7]} 6. Nbd2 {[%clk 0:03:04.3]} 6... Nd7
{[%clk 0:03:03.2]} 7. Nc4 {[%clk 0:02:57.8]} 7... Bd6 {[%clk 0:03:00.2]} 8. Qe2
{[%clk 0:02:48.7]} 8... f6 {[%clk 0:02:58.9]} 9. O-O {[%clk 0:02:33.5]} 9... O-O
{[%clk 0:02:54.2]} 10. Nh4 {[%clk 0:02:11.6]} 10... Nc5 {[%clk 0:02:38.5]} 11.
Nf5 {[%clk 0:02:03.7]} 11... Bxf5 {[%clk 0:02:29.4]} 12. exf5 {[%clk 0:02:05.6]}
12... Re8 {[%clk 0:02:30.2]} 13. Nd2 {[%clk 0:01:32.1]} 13... Bf8 {[%clk
0:02:22.5]} 14. Ne4 {[%clk 0:01:32.5]} 14... Nxe4 {[%clk 0:02:22]} 15. dxe4
{[%clk 0:01:27.5]} 15... Qe7 {[%clk 0:02:22.9]} 16. Be3 {[%clk 0:01:28.2]} 16...
Red8 {[%clk 0:02:21.8]} 17. Rfd1 {[%clk 0:01:23.1]} 17... Qb4 {[%clk 0:02:07.4]}
18. c4 {[%clk 0:01:19.5]} 18... Bc5 {[%clk 0:02:03.2]} 19. a3 {[%clk 0:01:13.9]}
19... Qb6 {[%clk 0:02:03.3]} 20. b4 {[%clk 0:01:08.9]} 20... Bxe3 {[%clk
0:02:01.9]} 21. fxe3 {[%clk 0:01:09.8]} 21... c5 {[%clk 0:01:57.2]} 22. b5
{[%clk 0:01:06.8]} 22... a6 {[%clk 0:01:55.7]} 23. a4 {[%clk 0:01:06.5]} 23...
c6 {[%clk 0:01:47.5]} 24. a5 {[%clk 0:00:59.8]} 24... Qc7 {[%clk 0:01:48.2]} 25.
b6 {[%clk 0:00:55.5]} 25... Qe7 {[%clk 0:01:49]} 26. h4 {[%clk 0:00:43.4]} 26...
Rxd1+ {[%clk 0:01:49.1]} 27. Rxd1 {[%clk 0:00:43.8]} 27... Rd8 {[%clk
0:01:50.4]} 28. Rd3 {[%clk 0:00:41]} 28... Rxd3 {[%clk 0:01:43.1]} 29. Qxd3
{[%clk 0:00:42.9]} 29... Kf7 {[%clk 0:01:44]} 30. Kh2 {[%clk 0:00:20.9]} 30...
Ke8 {[%clk 0:01:42.7]} 31. Qd1 {[%clk 0:00:20.3]} 31... h6 {[%clk 0:01:39.9]}
32. Kg3 {[%clk 0:00:18.4]} 32... Kf8 {[%clk 0:01:26.5]} 33. Kg4 {[%clk
0:00:17.9]} 33... Ke8 {[%clk 0:01:24.1]} 34. g3 {[%clk 0:00:16.4]} 34... Kf8
{[%clk 0:01:24.7]} 35. Kh3 {[%clk 0:00:16.6]} 35... Ke8 {[%clk 0:01:25.6]} 36.
Kg2 {[%clk 0:00:14.8]} 36... Kf8 {[%clk 0:01:26.1]} 37. Kh3 {[%clk 0:00:11.9]}
37... Ke8 {[%clk 0:01:27.1]} 38. Qh5+ {[%clk 0:00:12.9]} 38... Kf8 {[%clk
0:01:26.7]} 39. Qd1 {[%clk 0:00:14]} 39... Ke8 {[%clk 0:01:27.7]} 40. g4 {[%clk
0:00:13.2]} 40... Qd7 {[%clk 0:01:18.4]} 41. Qxd7+ {[%clk 0:00:10.2]} 41... Kxd7
{[%clk 0:01:20.3]} 42. g5 {[%clk 0:00:09.7]} 42... h5 {[%clk 0:01:20.6]} 43. g6
{[%clk 0:00:05.6]} 1/2-1/2

[Event "*** Titled Tuesday Blitz"]
[Site "Chess.com"]
[Date "2018.01.02"]
[Round "3"]
[White "maciek_92"]
[Black "AnonymousBread"]
[Result "1-0"]
[WhiteElo "2537"]
[BlackElo "2416"]
[TimeControl "180+2"]
[EndTime "13:37:37 PST"]
[Termination "maciek_92 won by resignation"]

1. c4 {[%clk 0:03:01.9]} 1... Nf6 {[%clk 0:03:00.5]} 2. Nc3 {[%clk 0:03:01.2]}
2... g6 {[%clk 0:03:01.5]} 3. g3 {[%clk 0:03:01.9]} 3... Bg7 {[%clk 0:03:02.1]}
4. Bg2 {[%clk 0:03:03.5]} 4... O-O {[%clk 0:03:03.6]} 5. d4 {[%clk 0:03:03.7]}
5... d6 {[%clk 0:03:04.9]} 6. Nf3 {[%clk 0:03:04.5]} 6... c6 {[%clk 0:03:06.3]}
7. O-O {[%clk 0:03:03.7]} 7... Qa5 {[%clk 0:03:07.7]} 8. h3 {[%clk 0:03:01.3]}
8... e5 {[%clk 0:03:08.5]} 9. d5 {[%clk 0:02:55]} 9... cxd5 {[%clk 0:03:09.2]}
10. cxd5 {[%clk 0:02:55.6]} 10... b5 {[%clk 0:03:07.1]} 11. Nd2 {[%clk
0:02:05.6]} 11... b4 {[%clk 0:03:06.4]} 12. Nce4 {[%clk 0:02:05.6]} 12... Bb7
{[%clk 0:01:24.5]} 13. Nxf6+ {[%clk 0:02:02.4]} 13... Bxf6 {[%clk 0:01:25.6]}
14. b3 {[%clk 0:01:32]} 14... Nd7 {[%clk 0:01:21.6]} 15. Nc4 {[%clk 0:01:32.9]}
15... Qc7 {[%clk 0:01:19.5]} 16. Bb2 {[%clk 0:01:30.8]} 16... Nb6 {[%clk
0:01:15.7]} 17. Na5 {[%clk 0:01:29.7]} 17... Ba6 {[%clk 0:01:14.1]} 18. Rc1
{[%clk 0:01:29.6]} 18... Qd7 {[%clk 0:01:15.2]} 19. Nc6 {[%clk 0:01:30]} 19...
Rac8 {[%clk 0:01:03.6]} 20. Qd2 {[%clk 0:01:26.7]} 20... Bb7 {[%clk 0:00:56.4]}
21. Nxb4 {[%clk 0:01:16.4]} 21... Rxc1 {[%clk 0:00:51.2]} 22. Rxc1 {[%clk
0:01:13.5]} 22... Rc8 {[%clk 0:00:53.1]} 23. Nc6 {[%clk 0:01:13.5]} 23... Ba8
{[%clk 0:00:46.5]} 24. a4 {[%clk 0:01:08.3]} 24... Qb7 {[%clk 0:00:27]} 25. Kh2
{[%clk 0:01:00.9]} 25... Nd7 {[%clk 0:00:27.6]} 26. b4 {[%clk 0:01:01.2]} 26...
Kg7 {[%clk 0:00:25.7]} 27. e3 {[%clk 0:00:35.7]} 27... Qa6 {[%clk 0:00:25.9]}
28. a5 {[%clk 0:00:34.4]} 28... Nb8 {[%clk 0:00:20]} 29. b5 {[%clk 0:00:32.2]}
29... Qb7 {[%clk 0:00:18]} 30. Bf1 {[%clk 0:00:31.1]} 30... Qd7 {[%clk 0:00:16]}
31. a6 {[%clk 0:00:28.9]} 31... h5 {[%clk 0:00:13.8]} 32. h4 {[%clk 0:00:25.6]}
32... Kh7 {[%clk 0:00:12.1]} 33. Bh3 {[%clk 0:00:25.7]} 1-0

[Event "*** Titled Tuesday Blitz"]
[Site "Chess.com"]
[Date "2018.01.02"]
[Round "3"]
[White "Marcus_Harvey"]
[Black "TijanaBlagojevic"]
[Result "1-0"]
[WhiteElo "2571"]
[BlackElo "2379"]
[TimeControl "180+2"]
[EndTime "13:37:38 PST"]
[Termination "Marcus_Harvey won by resignation"]

1. Nf3 {[%clk 0:03:01.9]} 1... d5 {[%clk 0:03:00.5]} 2. b3 {[%clk 0:03:03.3]}
2... c6 {[%clk 0:02:58.2]} 3. Bb2 {[%clk 0:03:04.4]} 3... Bg4 {[%clk 0:02:59]}
4. e3 {[%clk 0:03:04.6]} 4... Nd7 {[%clk 0:02:58.1]} 5. Be2 {[%clk 0:03:05.8]}
5... Ngf6 {[%clk 0:02:54]} 6. O-O {[%clk 0:03:06.8]} 6... e6 {[%clk 0:02:54.5]}
7. h3 {[%clk 0:03:07.8]} 7... Bh5 {[%clk 0:02:55.1]} 8. d4 {[%clk 0:03:08.8]}
8... Bd6 {[%clk 0:02:56.1]} 9. c4 {[%clk 0:03:09.8]} 9... O-O {[%clk 0:02:56.7]}
10. Nc3 {[%clk 0:03:11.1]} 10... a5 {[%clk 0:02:57.9]} 11. Nd2 {[%clk
0:03:11.9]} 11... Bxe2 {[%clk 0:02:54.1]} 12. Qxe2 {[%clk 0:03:13]} 12... e5
{[%clk 0:02:50.5]} 13. dxe5 {[%clk 0:03:12.7]} 13... Nxe5 {[%clk 0:02:51.2]} 14.
cxd5 {[%clk 0:03:12.9]} 14... cxd5 {[%clk 0:02:48.7]} 15. Nb5 {[%clk 0:03:12.1]}
15... Ne4 {[%clk 0:02:43.8]} 16. Nxe4 {[%clk 0:03:09.9]} 16... dxe4 {[%clk
0:02:44.9]} 17. Rad1 {[%clk 0:02:47.3]} 17... Nd3 {[%clk 0:02:42.6]} 18. Bxg7
{[%clk 0:02:33.9]} 18... Kxg7 {[%clk 0:02:34.7]} 19. Qg4+ {[%clk 0:02:34.8]}
19... Kh8 {[%clk 0:02:34.6]} 20. Qxe4 {[%clk 0:02:36.4]} 20... Nxf2 {[%clk
0:02:06.6]} 21. Qd4+ {[%clk 0:02:25.5]} 21... f6 {[%clk 0:02:07]} 22. Kxf2
{[%clk 0:02:09.2]} 22... Be5 {[%clk 0:02:03.5]} 23. Qxd8 {[%clk 0:02:03.4]}
23... Rfxd8 {[%clk 0:02:05.4]} 24. Ke2 {[%clk 0:02:01.7]} 24... a4 {[%clk
0:02:02.8]} 25. b4 {[%clk 0:01:53.7]} 25... Rac8 {[%clk 0:01:50.8]} 26. Rxd8+
{[%clk 0:01:52.9]} 26... Rxd8 {[%clk 0:01:51.9]} 27. Rc1 {[%clk 0:01:53.5]}
27... Kg7 {[%clk 0:01:38.8]} 28. Rc4 {[%clk 0:01:44.2]} 28... Kg6 {[%clk
0:01:34.7]} 29. Nd4 {[%clk 0:01:16.2]} 29... Rd6 {[%clk 0:01:30.3]} 30. b5
{[%clk 0:01:13.6]} 30... Rd5 {[%clk 0:01:18.6]} 31. Rb4 {[%clk 0:01:03.4]} 31...
Rc5 {[%clk 0:01:08.9]} 32. Kd3 {[%clk 0:01:00.3]} 32... h5 {[%clk 0:00:54.4]}
33. g4 {[%clk 0:00:45.7]} 33... h4 {[%clk 0:00:53.5]} 34. a3 {[%clk 0:00:31.4]}
34... Bg3 {[%clk 0:00:53.9]} 35. Rxa4 {[%clk 0:00:29.7]} 35... Rc1 {[%clk
0:00:54.9]} 36. Ra7 {[%clk 0:00:29]} 36... b6 {[%clk 0:00:53.9]} 37. Nf5 {[%clk
0:00:25.4]} 37... Bc7 {[%clk 0:00:48.8]} 38. Nxh4+ {[%clk 0:00:26.4]} 38... Kg5
{[%clk 0:00:49.7]} 39. Nf3+ {[%clk 0:00:27.6]} 39... Kg6 {[%clk 0:00:51.1]} 40.
a4 {[%clk 0:00:27.2]} 40... Rc5 {[%clk 0:00:42.6]} 41. Nd4 {[%clk 0:00:26.6]}
41... Kg5 {[%clk 0:00:42.1]} 42. Ne6+ {[%clk 0:00:27.6]} 1-0

[Event "*** Titled Tuesday Blitz"]
[Site "Chess.com"]
[Date "2018.01.02"]
[Round "3"]
[White "kleinebeer98"]
[Black "tigra"]
[Result "0-1"]
[WhiteElo "2516"]
[BlackElo "2682"]
[TimeControl "180+2"]
[EndTime "13:37:44 PST"]
[Termination "tigra won on time"]

1. e4 {[%clk 0:03:01.9]} 1... e6 {[%clk 0:02:55.2]} 2. d4 {[%clk 0:03:00.1]}
2... d5 {[%clk 0:02:56.6]} 3. Nd2 {[%clk 0:03:01.6]} 3... c5 {[%clk 0:02:56.1]}
4. exd5 {[%clk 0:03:00.7]} 4... exd5 {[%clk 0:02:58]} 5. Ngf3 {[%clk 0:02:53.4]}
5... Nf6 {[%clk 0:02:58.1]} 6. Bb5+ {[%clk 0:02:35]} 6... Bd7 {[%clk 0:02:58.4]}
7. Bxd7+ {[%clk 0:02:30.9]} 7... Nbxd7 {[%clk 0:03:00.3]} 8. O-O {[%clk
0:02:32.1]} 8... Be7 {[%clk 0:03:01.4]} 9. Re1 {[%clk 0:02:29.9]} 9... O-O
{[%clk 0:03:00.8]} 10. b3 {[%clk 0:02:21.6]} 10... Rc8 {[%clk 0:02:45.7]} 11.
Bb2 {[%clk 0:02:14.7]} 11... c4 {[%clk 0:02:45]} 12. bxc4 {[%clk 0:02:07.7]}
12... dxc4 {[%clk 0:02:46.9]} 13. c3 {[%clk 0:01:39.6]} 13... b5 {[%clk
0:02:46.8]} 14. a4 {[%clk 0:01:35.6]} 14... b4 {[%clk 0:02:44.5]} 15. Qe2 {[%clk
0:01:35]} 15... bxc3 {[%clk 0:02:41.3]} 16. Bxc3 {[%clk 0:01:34.2]} 16... Nd5
{[%clk 0:02:42.2]} 17. Rac1 {[%clk 0:01:29.7]} 17... a5 {[%clk 0:00:47.8]} 18.
Ne5 {[%clk 0:00:37]} 18... Nf4 {[%clk 0:00:35.1]} 19. Qg4 {[%clk 0:00:19.1]}
19... Nxe5 {[%clk 0:00:35.1]} 20. dxe5 {[%clk 0:00:20.5]} 20... Nd3 {[%clk
0:00:34.7]} 21. Ne4 {[%clk 0:00:15]} 21... Nxc1 {[%clk 0:00:26.2]} 22. Rxc1
{[%clk 0:00:06]} 22... Qd5 {[%clk 0:00:21.5]} 23. Nf6+ {[%clk 0:00:04.3]} 23...
Bxf6 {[%clk 0:00:22.3]} 24. exf6 {[%clk 0:00:06.2]} 24... g6 {[%clk 0:00:23.2]}
25. Rd1 {[%clk 0:00:07.2]} 25... h5 {[%clk 0:00:22.2]} 26. Qe2 {[%clk
0:00:03.8]} 26... Rce8 {[%clk 0:00:20]} 27. Qc2 {[%clk 0:00:02.8]} 27... Qc5
{[%clk 0:00:19.9]} 28. Qc1 {[%clk 0:00:02.9]} 28... Kh7 {[%clk 0:00:19.1]} 29.
Bd4 {[%clk 0:00:03.4]} 29... Qc6 {[%clk 0:00:18.7]} 30. Qg5 {[%clk 0:00:02.4]}
30... Rd8 {[%clk 0:00:19.3]} 31. Qf4 {[%clk 0:00:02.5]} 31... Rd5 {[%clk
0:00:19.6]} 32. h4 {[%clk 0:00:02.5]} 32... Qd6 {[%clk 0:00:20]} 0-1

[Event "*** Titled Tuesday Blitz"]
[Site "Chess.com"]
[Date "2018.01.02"]
[Round "3"]
[White "Blitzstream"]
[Black "mokerslag"]
[Result "1/2-1/2"]
[WhiteElo "2486"]
[BlackElo "2357"]
[TimeControl "180+2"]
[EndTime "13:37:47 PST"]
[Termination "Game drawn by repetition"]

1. e4 {[%clk 0:03:01.9]} 1... c5 {[%clk 0:03:00.4]} 2. b4 {[%clk 0:03:02.2]}
2... cxb4 {[%clk 0:03:01.1]} 3. d4 {[%clk 0:03:02.5]} 3... d5 {[%clk 0:02:59.9]}
4. e5 {[%clk 0:03:03]} 4... Nc6 {[%clk 0:03:00.2]} 5. Nf3 {[%clk 0:03:03.8]}
5... Bg4 {[%clk 0:02:59.1]} 6. Be3 {[%clk 0:02:58.8]} 6... e6 {[%clk 0:02:58.7]}
7. h3 {[%clk 0:02:40.1]} 7... Bh5 {[%clk 0:02:59.1]} 8. Be2 {[%clk 0:02:34]}
8... Nge7 {[%clk 0:02:57.9]} 9. O-O {[%clk 0:02:31.2]} 9... Nf5 {[%clk
0:02:56.1]} 10. Bg5 {[%clk 0:02:32.1]} 10... f6 {[%clk 0:02:49.8]} 11. exf6
{[%clk 0:02:06.6]} 11... gxf6 {[%clk 0:02:51.7]} 12. Bf4 {[%clk 0:01:53.8]}
12... Bd6 {[%clk 0:02:41.7]} 13. Bxd6 {[%clk 0:01:41.6]} 13... Qxd6 {[%clk
0:02:37.2]} 14. g4 {[%clk 0:01:35]} 14... Rg8 {[%clk 0:02:35.2]} 15. Kh1 {[%clk
0:01:33.3]} 15... Bxg4 {[%clk 0:02:28.8]} 16. hxg4 {[%clk 0:01:34.4]} 16... Rxg4
{[%clk 0:02:30.7]} 17. Rg1 {[%clk 0:01:33.5]} 17... h5 {[%clk 0:02:29.7]} 18.
Nbd2 {[%clk 0:01:01.2]} 18... O-O-O {[%clk 0:02:21.6]} 19. Qf1 {[%clk
0:00:59.4]} 19... Rdg8 {[%clk 0:02:18.8]} 20. Qh3 {[%clk 0:00:59.2]} 20... Qf4
{[%clk 0:02:09.4]} 21. Qh2 {[%clk 0:00:48.1]} 21... Qxh2+ {[%clk 0:01:55.4]} 22.
Nxh2 {[%clk 0:00:41.7]} 22... Rxg1+ {[%clk 0:01:56.3]} 23. Rxg1 {[%clk
0:00:43.6]} 23... Rxg1+ {[%clk 0:01:57.7]} 24. Kxg1 {[%clk 0:00:44.9]} 24...
Nfxd4 {[%clk 0:01:57.9]} 25. Bd1 {[%clk 0:00:40]} 25... Kd7 {[%clk 0:01:32.3]}
26. Nhf3 {[%clk 0:00:39.5]} 26... a5 {[%clk 0:01:24.5]} 27. Nxd4 {[%clk
0:00:37.5]} 27... Nxd4 {[%clk 0:01:26.4]} 28. Nb3 {[%clk 0:00:39]} 28... Nxb3
{[%clk 0:01:08.3]} 29. cxb3 {[%clk 0:00:40.9]} 29... Kd6 {[%clk 0:01:07.9]} 30.
Bxh5 {[%clk 0:00:41.2]} 30... d4 {[%clk 0:01:08.1]} 31. Kf1 {[%clk 0:00:41.2]}
31... f5 {[%clk 0:01:08.8]} 32. Ke2 {[%clk 0:00:41.4]} 32... e5 {[%clk
0:01:10.2]} 33. f4 {[%clk 0:00:37]} 33... e4 {[%clk 0:00:56.6]} 34. Bf7 {[%clk
0:00:32.9]} 34... b6 {[%clk 0:00:54.2]} 35. Bc4 {[%clk 0:00:30.6]} 35... Ke7
{[%clk 0:00:52.3]} 36. Ba6 {[%clk 0:00:31.4]} 36... Kf6 {[%clk 0:00:52.8]} 37.
Bc8 {[%clk 0:00:32.4]} 37... Kg6 {[%clk 0:00:52.4]} 38. Kf2 {[%clk 0:00:31.7]}
38... Kf6 {[%clk 0:00:53.2]} 39. Ke2 {[%clk 0:00:31.2]} 39... Kg6 {[%clk
0:00:54.4]} 40. Kd2 {[%clk 0:00:32]} 40... Kf6 {[%clk 0:00:54.6]} 41. Ke2 {[%clk
0:00:33.3]} 41... Kg6 {[%clk 0:00:55.6]} 42. Bd7 {[%clk 0:00:34]} 42... Kf6
{[%clk 0:00:56.7]} 43. Kf2 {[%clk 0:00:29.7]} 43... Kg6 {[%clk 0:00:57.5]} 44.
Ke2 {[%clk 0:00:23.5]} 44... Kf6 {[%clk 0:00:58.6]} 45. Kd2 {[%clk 0:00:24.2]}
45... Kg6 {[%clk 0:00:59.7]} 46. Ke2 {[%clk 0:00:25.3]} 1/2-1/2

[Event "*** Titled Tuesday Blitz"]
[Site "Chess.com"]
[Date "2018.01.02"]
[Round "3"]
[White "DagurR"]
[Black "juniortay"]
[Result "1-0"]
[WhiteElo "2314"]
[BlackElo "2288"]
[TimeControl "180+2"]
[EndTime "13:38:03 PST"]
[Termination "DagurR won by resignation"]

1. b3 {[%clk 0:03:00.8]} 1... e5 {[%clk 0:02:58]} 2. Bb2 {[%clk 0:03:00.8]} 2...
Nc6 {[%clk 0:02:59]} 3. e3 {[%clk 0:03:02.2]} 3... Nf6 {[%clk 0:03:00.1]} 4. c4
{[%clk 0:03:00.6]} 4... d5 {[%clk 0:02:57.9]} 5. cxd5 {[%clk 0:03:00.5]} 5...
Nxd5 {[%clk 0:02:59.8]} 6. d3 {[%clk 0:03:01.4]} 6... Bd6 {[%clk 0:03:00.1]} 7.
Nf3 {[%clk 0:03:02.5]} 7... O-O {[%clk 0:03:00.4]} 8. Be2 {[%clk 0:03:04.3]}
8... f5 {[%clk 0:02:59.3]} 9. O-O {[%clk 0:03:05.1]} 9... Nf6 {[%clk 0:03:00.3]}
10. a3 {[%clk 0:03:05.6]} 10... Qe8 {[%clk 0:02:58.1]} 11. Nbd2 {[%clk
0:03:05.4]} 11... Qg6 {[%clk 0:02:58.2]} 12. Nc4 {[%clk 0:02:54.1]} 12... e4
{[%clk 0:02:52.3]} 13. dxe4 {[%clk 0:02:51.8]} 13... fxe4 {[%clk 0:02:51.7]} 14.
Ne1 {[%clk 0:02:46.6]} 14... Bg4 {[%clk 0:02:34.6]} 15. Nxd6 {[%clk 0:02:25.9]}
15... cxd6 {[%clk 0:02:32.9]} 16. Bc4+ {[%clk 0:02:05.8]} 16... Kh8 {[%clk
0:02:30.2]} 17. Qxd6 {[%clk 0:02:06.3]} 17... Rad8 {[%clk 0:02:10.1]} 18. Qg3
{[%clk 0:02:01.8]} 18... Nh5 {[%clk 0:01:52.9]} 19. Qh4 {[%clk 0:02:01.8]} 19...
Na5 {[%clk 0:01:50.6]} 20. Bf7 {[%clk 0:00:59.8]} 20... Qxf7 {[%clk 0:01:43.8]}
21. Qxg4 {[%clk 0:01:00.9]} 21... Nxb3 {[%clk 0:01:44.9]} 22. Qxe4 {[%clk
0:00:59]} 22... Nxa1 {[%clk 0:01:23.8]} 23. Bxa1 {[%clk 0:01:00.9]} 23... Rd1
{[%clk 0:01:03.1]} 24. Nf3 {[%clk 0:00:53]} 24... Rxf1+ {[%clk 0:01:00.2]} 25.
Kxf1 {[%clk 0:00:54.9]} 25... b5 {[%clk 0:01:00.2]} 26. Bd4 {[%clk 0:00:54.6]}
26... Re8 {[%clk 0:00:52]} 27. Ne5 {[%clk 0:00:46.7]} 27... Qc4+ {[%clk
0:00:40.6]} 28. Nxc4 {[%clk 0:00:34.4]} 28... Rxe4 {[%clk 0:00:40.3]} 29. Nd6
{[%clk 0:00:35.7]} 29... Re7 {[%clk 0:00:36.5]} 30. Nxb5 {[%clk 0:00:36.9]}
30... a6 {[%clk 0:00:35.5]} 31. Nd6 {[%clk 0:00:30.3]} 31... Nf6 {[%clk
0:00:33.6]} 32. Ke2 {[%clk 0:00:22.8]} 32... Rc7 {[%clk 0:00:30.7]} 33. Kd3
{[%clk 0:00:23.4]} 33... Kg8 {[%clk 0:00:29.2]} 34. Nc4 {[%clk 0:00:19.7]} 34...
Ng4 {[%clk 0:00:24.9]} 35. e4 {[%clk 0:00:16.8]} 35... Nxh2 {[%clk 0:00:16.4]}
36. f3 {[%clk 0:00:17.2]} 36... h5 {[%clk 0:00:17.5]} 37. Be5 {[%clk 0:00:17.3]}
37... Rd7+ {[%clk 0:00:17.5]} 38. Ke2 {[%clk 0:00:18.7]} 38... Nf1 {[%clk
0:00:10.7]} 39. Ke1 {[%clk 0:00:19.8]} 39... Rd1+ {[%clk 0:00:12.4]} 40. Kxd1
{[%clk 0:00:20.2]} 1-0